[Event "Live Chess"]
[Site "Chess.com"]
[Date "2021.02.06"]
[Round "2"]
[White "dabpacman"]
[Black "sahildaGOAT"]
[Result "1-0"]
[CurrentPosition "kQ6/3N4/3pK3/4p3/2P1P3/8/8/8 b - -"]
[Timezone "UTC"]
[ECO "C28"]
[ECOUrl "https://www.chess.com/openings/Vienna-Game-Falkbeer-Vienna-Gambit"]
[UTCDate "2021.02.06"]
[UTCTime "19:00:45"]
[WhiteElo "1099"]
[BlackElo "985"]
[TimeControl "1200+10"]
[Termination "dabpacman won by checkmate"]
[StartTime "19:00:45"]
[EndDate "2021.02.06"]
[EndTime "19:32:46"]
[Link "https://www.chess.com/live/game/6472128528"]

1. e4 {[%clk 0:20:10]} 1... e5 {[%clk 0:20:08.9]} 2. Nc3 {[%clk 0:20:17.6]} 2... Nf6 {[%clk 0:20:16.6]} 3. f4 {[%clk 0:20:25.7]} 3... d6 {[%clk 0:20:19.7]} 4. Nf3 {[%clk 0:20:33.5]} 4... Nc6 {[%clk 0:20:27.8]} 5. Bb5 {[%clk 0:20:38]} 5... Bd7 {[%clk 0:20:28.4]} 6. d3 {[%clk 0:20:36]} 6... exf4 {[%clk 0:20:32.1]} 7. Bxf4 {[%clk 0:20:43]} 7... a6 {[%clk 0:20:41.1]} 8. Bxc6 {[%clk 0:20:51.4]} 8... Bxc6 {[%clk 0:20:50.1]} 9. O-O {[%clk 0:20:59.1]} 9... Be7 {[%clk 0:20:58.2]} 10. Qe1 {[%clk 0:20:34.6]} 10... h6 {[%clk 0:21:05.7]} 11. Kh1 {[%clk 0:20:41.5]} 11... g5 {[%clk 0:21:09.6]} 12. Bg3 {[%clk 0:20:45.5]} 12... g4 {[%clk 0:21:16.6]} 13. Nh4 {[%clk 0:20:50.4]} 13... Nd7 {[%clk 0:21:13.4]} 14. Qf2 {[%clk 0:20:54.3]} 14... f6 {[%clk 0:21:16.4]} 15. Qf5 {[%clk 0:20:43.9]} 15... Nf8 {[%clk 0:21:05]} 16. Qh5+ {[%clk 0:20:17.9]} 16... Kd7 {[%clk 0:21:04.4]} 17. Qxg4+ {[%clk 0:20:20.3]} 17... Ke8 {[%clk 0:21:01.3]} 18. Nf5 {[%clk 0:19:57]} 18... Ne6 {[%clk 0:20:37.4]} 19. d4 {[%clk 0:19:32.2]} 19... Bb5 {[%clk 0:20:14.1]} 20. Nxb5 {[%clk 0:19:04.4]} 20... axb5 {[%clk 0:20:21.1]} 21. d5 {[%clk 0:19:11.9]} 21... Ng5 {[%clk 0:20:21.4]} 22. h4 {[%clk 0:18:14.6]} 22... h5 {[%clk 0:20:11.3]} 23. Qe2 {[%clk 0:17:43.1]} 23... Nf7 {[%clk 0:20:14.9]} 24. Ng7+ {[%clk 0:17:47.6]} 24... Kd7 {[%clk 0:20:18.4]} 25. Qxb5+ {[%clk 0:17:44.9]} 25... Kc8 {[%clk 0:20:26.8]} 26. Rf3 {[%clk 0:16:37.8]} 26... Qd7 {[%clk 0:20:10.6]} 27. Qxd7+ {[%clk 0:15:56.1]} 27... Kxd7 {[%clk 0:20:18.5]} 28. Nf5 {[%clk 0:16:05]} 28... Ra4 {[%clk 0:20:11.6]} 29. Re3 {[%clk 0:15:43.9]} 29... Ne5 {[%clk 0:19:56.5]} 30. Bxe5 {[%clk 0:15:20]} 30... fxe5 {[%clk 0:19:49.4]} 31. a3 {[%clk 0:15:00.1]} 31... Rg8 {[%clk 0:19:53.3]} 32. b3 {[%clk 0:14:49]} 32... Ra6 {[%clk 0:19:46.2]} 33. c4 {[%clk 0:13:59.6]} 33... Rg4 {[%clk 0:19:48.3]} 34. g3 {[%clk 0:13:56.3]} 34... c6 {[%clk 0:19:45.2]} 35. dxc6+ {[%clk 0:13:23.2]} 35... bxc6 {[%clk 0:19:39.5]} 36. a4 {[%clk 0:13:31]} 36... Bf6 {[%clk 0:19:28.1]} 37. Rd1 {[%clk 0:13:35.8]} 37... c5 {[%clk 0:19:34.1]} 38. Red3 {[%clk 0:13:22]} 38... Be7 {[%clk 0:19:31.5]} 39. Re3 {[%clk 0:13:00.7]} 39... Rb6 {[%clk 0:19:25.3]} 40. Rb1 {[%clk 0:12:59.2]} 40... Rb8 {[%clk 0:19:24.6]} 41. Kg2 {[%clk 0:12:32.2]} 41... Rf8 {[%clk 0:19:02.6]} 42. b4 {[%clk 0:12:21.6]} 42... cxb4 {[%clk 0:19:01]} 43. Rxb4 {[%clk 0:12:29.1]} 43... Re8 {[%clk 0:18:47.9]} 44. Kf3 {[%clk 0:12:23.3]} 44... Bf8 {[%clk 0:18:46.5]} 45. Rb5 {[%clk 0:12:25.2]} 45... Rc8 {[%clk 0:18:37.3]} 46. Rc3 {[%clk 0:12:27.6]} 46... Ra8 {[%clk 0:18:38.2]} 47. a5 {[%clk 0:12:35.1]} 47... Kc6 {[%clk 0:18:43]} 48. Rcb3 {[%clk 0:12:00.4]} 48... Ra6 {[%clk 0:18:36.1]} 49. Rb6+ {[%clk 0:12:06.3]} 49... Rxb6 {[%clk 0:18:43]} 50. axb6 {[%clk 0:12:15.3]} 50... Kb7 {[%clk 0:18:51.9]} 51. Ne3 {[%clk 0:12:17.6]} 51... Rg7 {[%clk 0:18:50]} 52. Nd5 {[%clk 0:12:12.3]} 52... Rf7+ {[%clk 0:18:38.9]} 53. Kg2 {[%clk 0:12:11.5]} 53... Bh6 {[%clk 0:18:40.6]} 54. Ra3 {[%clk 0:12:12.8]} 54... Kc6 {[%clk 0:18:40.2]} 55. Rf3 {[%clk 0:11:58.9]} 55... Rh7 {[%clk 0:18:20.4]} 56. Rf8 {[%clk 0:11:45.9]} 56... Bxf8 {[%clk 0:18:22.1]} 57. Kh3 {[%clk 0:11:48.8]} 57... Bh6 {[%clk 0:18:20]} 58. g4 {[%clk 0:11:57]} 58... hxg4+ {[%clk 0:18:27.5]} 59. Kxg4 {[%clk 0:12:05.8]} 59... Bd2 {[%clk 0:18:32.7]} 60. h5 {[%clk 0:12:06.5]} 60... Kc5 {[%clk 0:18:36.1]} 61. Nf6 {[%clk 0:12:13.3]} 61... Rf7 {[%clk 0:18:30.8]} 62. Kf5 {[%clk 0:12:17.9]} 62... Ba5 {[%clk 0:18:21.9]} 63. Ke6 {[%clk 0:12:26]} 63... Rb7 {[%clk 0:18:22.9]} 64. h6 {[%clk 0:12:33.2]} 64... Rb8 {[%clk 0:18:06.1]} 65. Nd7+ {[%clk 0:12:35.8]} 65... Kc6 {[%clk 0:18:10.5]} 66. Nxb8+ {[%clk 0:12:43.8]} 66... Kxb6 {[%clk 0:18:15.7]} 67. h7 {[%clk 0:12:52]} 67... Kc5 {[%clk 0:18:22.2]} 68. h8=Q {[%clk 0:12:59.6]} 68... Bc7 {[%clk 0:18:29.7]} 69. Qc8 {[%clk 0:13:08.1]} 69... Kb6 {[%clk 0:18:37.1]} 70. Nd7+ {[%clk 0:13:16.7]} 70... Ka7 {[%clk 0:18:43.1]} 71. Qxc7+ {[%clk 0:13:25]} 71... Ka8 {[%clk 0:18:51.5]} 72. Qb8# {[%clk 0:13:33.4]} 1-0

[Event "Live Chess"]
[Site "Chess.com"]
[Date "2021.02.06"]
[Round "2"]
[White "BishopPlayz"]
[Black "cassiusl"]
[Result "1-0"]
[CurrentPosition "7k/5KQ1/8/8/8/8/8/8 b - -"]
[Timezone "UTC"]
[ECO "B10"]
[ECOUrl "https://www.chess.com/openings/Caro-Kann-Defense-2.Nc3-d5-3.d3-dxe4"]
[UTCDate "2021.02.06"]
[UTCTime "19:00:38"]
[WhiteElo "1066"]
[BlackElo "1337"]
[TimeControl "1200+10"]
[Termination "BishopPlayz won by checkmate"]
[StartTime "19:00:38"]
[EndDate "2021.02.06"]
[EndTime "19:58:11"]
[Link "https://www.chess.com/live/game/6472129653"]

1. e4 {[%clk 0:20:10]} 1... c6 {[%clk 0:19:59.5]} 2. Nc3 {[%clk 0:20:14.3]} 2... d5 {[%clk 0:19:45.6]} 3. d3 {[%clk 0:20:18.4]} 3... dxe4 {[%clk 0:19:32.1]} 4. dxe4 {[%clk 0:20:26.6]} 4... Qxd1+ {[%clk 0:19:39.7]} 5. Nxd1 {[%clk 0:20:35.2]} 5... e5 {[%clk 0:19:35.8]} 6. Nf3 {[%clk 0:20:39.4]} 6... f6 {[%clk 0:19:24.9]} 7. Nc3 {[%clk 0:20:46.8]} 7... Bb4 {[%clk 0:19:18.9]} 8. Bd2 {[%clk 0:20:55]} 8... Ne7 {[%clk 0:19:10.1]} 9. O-O-O {[%clk 0:20:58.2]} 9... Be6 {[%clk 0:18:19.1]} 10. a3 {[%clk 0:20:57.1]} 10... Ba5 {[%clk 0:17:37.4]} 11. Bd3 {[%clk 0:20:48.7]} 11... Nd7 {[%clk 0:16:54.5]} 12. Kb1 {[%clk 0:20:07.9]} 12... O-O-O {[%clk 0:16:30.1]} 13. Be3 {[%clk 0:19:22.5]} 13... Bxc3 {[%clk 0:15:58.7]} 14. bxc3 {[%clk 0:19:28]} 14... Nb6 {[%clk 0:15:32.4]} 15. Bc5 {[%clk 0:18:55.6]} 15... Ng6 {[%clk 0:14:53.6]} 16. Kc1 {[%clk 0:18:29.3]} 16... Na4 {[%clk 0:13:21.8]} 17. Bb4 {[%clk 0:18:14]} 17... c5 {[%clk 0:11:28.3]} 18. Ba5 {[%clk 0:17:31.2]} 18... b6 {[%clk 0:10:32]} 19. Bb5 {[%clk 0:17:06.1]} 19... bxa5 {[%clk 0:10:03.7]} 20. Bxa4 {[%clk 0:16:57.7]} 20... Nf4 {[%clk 0:08:03.1]} 21. Bb5 {[%clk 0:16:18.8]} 21... Bg4 {[%clk 0:07:15.7]} 22. Rhg1 {[%clk 0:15:53]} 22... Rxd1+ {[%clk 0:06:19.3]} 23. Kxd1 {[%clk 0:15:59.5]} 23... Nxg2 {[%clk 0:05:20.6]} 24. Be2 {[%clk 0:15:51.1]} 24... Rd8+ {[%clk 0:05:10.4]} 25. Kc1 {[%clk 0:15:58.3]} 25... Nf4 {[%clk 0:04:44.6]} 26. Ba6+ {[%clk 0:14:40.1]} 26... Kc7 {[%clk 0:04:33.1]} 27. Rxg4 {[%clk 0:14:26.1]} 27... g6 {[%clk 0:04:31.2]} 28. h4 {[%clk 0:13:53.6]} 28... Rd6 {[%clk 0:04:18.8]} 29. Bc4 {[%clk 0:13:44]} 29... Kc6 {[%clk 0:04:10.7]} 30. a4 {[%clk 0:13:21.8]} 30... Nh3 {[%clk 0:03:32.4]} 31. Rg2 {[%clk 0:12:19.4]} 31... Nf4 {[%clk 0:03:39.7]} 32. Rg4 {[%clk 0:12:06.2]} 32... Nh3 {[%clk 0:03:47]} 33. Bd5+ {[%clk 0:11:13]} 33... Kc7 {[%clk 0:03:31.8]} 34. Nd2 {[%clk 0:10:26.9]} 34... Nf4 {[%clk 0:03:06.4]} 35. Nc4 {[%clk 0:09:54.2]} 35... Rd8 {[%clk 0:02:34.1]} 36. Nxa5 {[%clk 0:09:39.8]} 36... Nxd5 {[%clk 0:02:32.9]} 37. exd5 {[%clk 0:09:47]} 37... Rxd5 {[%clk 0:02:42.8]} 38. Nc4 {[%clk 0:09:29.9]} 38... f5 {[%clk 0:02:39.8]} 39. Rg5 {[%clk 0:09:14.9]} 39... Kc6 {[%clk 0:02:34.8]} 40. h5 {[%clk 0:09:01.3]} 40... gxh5 {[%clk 0:02:29.9]} 41. Rxh5 {[%clk 0:08:52.2]} 41... e4 {[%clk 0:02:20.8]} 42. Rxh7 {[%clk 0:08:45.1]} 42... a6 {[%clk 0:02:22]} 43. Ra7 {[%clk 0:08:47.4]} 43... f4 {[%clk 0:02:23]} 44. Rxa6+ {[%clk 0:08:54.2]} 44... Kb7 {[%clk 0:02:28.8]} 45. Re6 {[%clk 0:08:51.4]} 45... e3 {[%clk 0:02:29.4]} 46. fxe3 {[%clk 0:08:54]} 46... fxe3 {[%clk 0:02:33]} 47. Rxe3 {[%clk 0:09:00.9]} 47... Rd8 {[%clk 0:02:36.8]} 48. Re5 {[%clk 0:08:58.3]} 48... Kc6 {[%clk 0:02:44.2]} 49. Na5+ {[%clk 0:08:54.7]} 49... Kb6 {[%clk 0:02:48.7]} 50. Nc4+ {[%clk 0:08:53.9]} 50... Kc6 {[%clk 0:02:57]} 51. Re6+ {[%clk 0:08:54.3]} 51... Kd5 {[%clk 0:02:47.2]} 52. Rd6+ {[%clk 0:08:47.8]} 52... Rxd6 {[%clk 0:02:45.5]} 53. Nxd6 {[%clk 0:08:56.9]} 53... Kxd6 {[%clk 0:02:55.4]} 54. Kd2 {[%clk 0:09:05.4]} 54... Kd5 {[%clk 0:01:26.4]} 55. a5 {[%clk 0:09:02.8]} 55... c4 {[%clk 0:01:16.5]} 56. a6 {[%clk 0:09:08.1]} 56... Kc6 {[%clk 0:01:25.2]} 57. a7 {[%clk 0:09:16.7]} 57... Kb7 {[%clk 0:01:34.3]} 58. Ke3 {[%clk 0:09:24.7]} 58... Kxa7 {[%clk 0:01:42.1]} 59. Kd4 {[%clk 0:09:33.9]} 59... Kb6 {[%clk 0:01:23]} 60. Kxc4 {[%clk 0:09:39.2]} 60... Kc6 {[%clk 0:01:18]} 61. Kb4 {[%clk 0:09:41.7]} 61... Kb6 {[%clk 0:01:23.5]} 62. c4 {[%clk 0:09:41.6]} 62... Kc6 {[%clk 0:01:22.7]} 63. c5 {[%clk 0:09:17.3]} 63... Kc7 {[%clk 0:00:56.3]} 64. Kb5 {[%clk 0:09:20.1]} 64... Kb7 {[%clk 0:01:00.2]} 65. c6+ {[%clk 0:09:06.6]} 65... Kc7 {[%clk 0:01:09]} 66. Kc5 {[%clk 0:09:12.4]} 66... Kc8 {[%clk 0:01:17.3]} 67. Kd6 {[%clk 0:09:06.9]} 67... Kd8 {[%clk 0:01:19.7]} 68. c7+ {[%clk 0:09:03.5]} 68... Kc8 {[%clk 0:01:27.4]} 69. Kd5 {[%clk 0:08:57.8]} 69... Kd7 {[%clk 0:01:12.4]} 70. c8=Q+ {[%clk 0:08:58.2]} 70... Kxc8 {[%clk 0:01:21.2]} 71. c3 {[%clk 0:09:06.3]} 71... Kd7 {[%clk 0:01:20.2]} 72. c4 {[%clk 0:09:10.5]} 72... Kc7 {[%clk 0:01:23.3]} 73. Kc5 {[%clk 0:09:16.7]} 73... Kd7 {[%clk 0:01:25.2]} 74. Kb6 {[%clk 0:09:25.8]} 74... Kc8 {[%clk 0:01:31.8]} 75. Kc6 {[%clk 0:09:25.3]} 75... Kd8 {[%clk 0:01:37.3]} 76. Kb7 {[%clk 0:09:34.4]} 76... Kd7 {[%clk 0:01:46.4]} 77. c5 {[%clk 0:09:43.1]} 77... Kd8 {[%clk 0:01:55.3]} 78. c6 {[%clk 0:09:52]} 78... Ke7 {[%clk 0:02:04.7]} 79. c7 {[%clk 0:10:01.2]} 79... Kd6 {[%clk 0:02:14.1]} 80. c8=Q {[%clk 0:10:10.1]} 80... Ke7 {[%clk 0:02:23.3]} 81. Qc6 {[%clk 0:10:17.9]} 81... Kf7 {[%clk 0:02:32.4]} 82. Qd6 {[%clk 0:10:26.8]} 82... Kg7 {[%clk 0:02:41.6]} 83. Qe6 {[%clk 0:10:35.7]} 83... Kh7 {[%clk 0:02:50.2]} 84. Qf6 {[%clk 0:10:42.7]} 84... Kg8 {[%clk 0:02:59.1]} 85. Kc7 {[%clk 0:10:51.7]} 85... Kh7 {[%clk 0:03:08]} 86. Kd7 {[%clk 0:11:00.9]} 86... Kg8 {[%clk 0:03:17.3]} 87. Ke8 {[%clk 0:11:00]} 87... Kh7 {[%clk 0:03:25.9]} 88. Ke7 {[%clk 0:10:46]} 88... Kg8 {[%clk 0:03:34.1]} 89. Qg6+ {[%clk 0:10:16.5]} 89... Kh8 {[%clk 0:03:42.3]} 90. Qh6+ {[%clk 0:10:13.3]} 90... Kg8 {[%clk 0:03:50.1]} 91. Qf8+ {[%clk 0:10:16.1]} 91... Kh7 {[%clk 0:03:59]} 92. Qf5+ {[%clk 0:10:10.2]} 92... Kg7 {[%clk 0:04:05.5]} 93. Qg5+ {[%clk 0:10:13]} 93... Kh7 {[%clk 0:04:08.9]} 94. Kf7 {[%clk 0:10:18.3]} 94... Kh8 {[%clk 0:04:17.5]} 95. Qg7# {[%clk 0:10:27.4]} 1-0

[Event "Live Chess"]
[Site "Chess.com"]
[Date "2021.02.06"]
[Round "2"]
[White "SamDaGreat"]
[Black "CePtIcCrAsH5X_X"]
[Result "1-0"]
[CurrentPosition "5R1k/p1r4p/6pB/5p2/1Pn5/P7/5PPP/3R2K1 b - -"]
[Timezone "UTC"]
[ECO "B10"]
[ECOUrl "https://www.chess.com/openings/Caro-Kann-Defense-2.Nc3-d5"]
[UTCDate "2021.02.06"]
[UTCTime "19:01:07"]
[WhiteElo "1583"]
[BlackElo "1190"]
[TimeControl "1200+10"]
[Termination "SamDaGreat won by checkmate"]
[StartTime "19:01:07"]
[EndDate "2021.02.06"]
[EndTime "19:26:13"]
[Link "https://www.chess.com/live/game/6472130443"]

1. e4 {[%clk 0:20:10]} 1... c6 {[%clk 0:20:09.4]} 2. Nc3 {[%clk 0:20:18.1]} 2... d5 {[%clk 0:20:18.3]} 3. exd5 {[%clk 0:20:27.3]} 3... cxd5 {[%clk 0:20:28.2]} 4. d4 {[%clk 0:20:36.3]} 4... Bf5 {[%clk 0:20:34.8]} 5. Bd3 {[%clk 0:20:37.9]} 5... Bxd3 {[%clk 0:20:40.3]} 6. Qxd3 {[%clk 0:20:47.3]} 6... e6 {[%clk 0:20:49.3]} 7. a3 {[%clk 0:20:53]} 7... Nf6 {[%clk 0:20:56.9]} 8. Nf3 {[%clk 0:21:00.1]} 8... Nbd7 {[%clk 0:21:04.7]} 9. O-O {[%clk 0:21:08.8]} 9... g6 {[%clk 0:21:11.2]} 10. Bg5 {[%clk 0:21:12.9]} 10... Bg7 {[%clk 0:21:17.1]} 11. Ne5 {[%clk 0:21:18.6]} 11... O-O {[%clk 0:21:19.7]} 12. Qf3 {[%clk 0:21:21.9]} 12... Qc7 {[%clk 0:20:48]} 13. Nxd7 {[%clk 0:20:03.2]} 13... Nxd7 {[%clk 0:20:52.9]} 14. Rad1 {[%clk 0:20:11.7]} 14... Qb6 {[%clk 0:20:56]} 15. Na4 {[%clk 0:19:20.6]} 15... Qc6 {[%clk 0:20:40.1]} 16. Nc3 {[%clk 0:19:27.4]} 16... Qb6 {[%clk 0:20:11.4]} 17. b4 {[%clk 0:17:46.1]} 17... Bxd4 {[%clk 0:19:39.1]} 18. Na4 {[%clk 0:17:51.3]} 18... Qc6 {[%clk 0:19:46.8]} 19. Rxd4 {[%clk 0:17:58.4]} 19... Qxa4 {[%clk 0:19:52]} 20. c4 {[%clk 0:15:59.1]} 20... f5 {[%clk 0:18:33.8]} 21. cxd5 {[%clk 0:15:42.8]} 21... exd5 {[%clk 0:18:16.4]} 22. Qxd5+ {[%clk 0:15:50.9]} 22... Rf7 {[%clk 0:18:08]} 23. Qxb7 {[%clk 0:15:00]} 23... Raf8 {[%clk 0:17:53.4]} 24. Qd5 {[%clk 0:13:55.7]} 24... Nb6 {[%clk 0:17:44.1]} 25. Qa2 {[%clk 0:12:37.3]} 25... Kg7 {[%clk 0:17:38.8]} 26. Qb2 {[%clk 0:11:54.6]} 26... Kg8 {[%clk 0:17:11.6]} 27. Rfd1 {[%clk 0:12:00.9]} 27... Nc4 {[%clk 0:17:05.5]} 28. Qc3 {[%clk 0:11:36.3]} 28... Rc7 {[%clk 0:16:21.9]} 29. Bh6 {[%clk 0:11:37.7]} 29... Rff7 {[%clk 0:16:16.3]} 30. Rd8+ {[%clk 0:11:32.2]} 30... Qe8 {[%clk 0:15:40.7]} 31. Rxe8+ {[%clk 0:10:51.7]} 31... Rf8 {[%clk 0:15:50.6]} 32. Qh8+ {[%clk 0:10:37.6]} 32... Kxh8 {[%clk 0:15:22.8]} 33. Rxf8# {[%clk 0:10:38]} 1-0

[Event "Live Chess"]
[Site "Chess.com"]
[Date "2021.02.06"]
[Round "2"]
[White "namritahansrai"]
[Black "RaggedFire"]
[Result "0-1"]
[CurrentPosition "r3r1k1/1bp2ppp/p7/1p6/3Ppq2/2P2N2/PP3PPP/R3R1K1 w - -"]
[Timezone "UTC"]
[ECO "C20"]
[ECOUrl "https://www.chess.com/openings/Kings-Pawn-Opening-Wayward-Queen-Kiddie-Countergambit"]
[UTCDate "2021.02.06"]
[UTCTime "19:01:18"]
[WhiteElo "732"]
[BlackElo "1236"]
[TimeControl "1200+10"]
[Termination "RaggedFire won by resignation"]
[StartTime "19:01:18"]
[EndDate "2021.02.06"]
[EndTime "19:05:23"]
[Link "https://www.chess.com/live/game/6472131089"]

1. e4 {[%clk 0:19:55]} 1... e5 {[%clk 0:20:07.1]} 2. Qh5 {[%clk 0:20:02.2]} 2... Nf6 {[%clk 0:20:12.8]} 3. Qxe5+ {[%clk 0:20:10.6]} 3... Be7 {[%clk 0:20:20.9]} 4. Nf3 {[%clk 0:20:19]} 4... Nc6 {[%clk 0:20:28.8]} 5. Qc3 {[%clk 0:20:23.5]} 5... Nxe4 {[%clk 0:20:37]} 6. Qe3 {[%clk 0:20:30]} 6... Nf6 {[%clk 0:20:41]} 7. Nc3 {[%clk 0:20:37.8]} 7... d5 {[%clk 0:20:49.9]} 8. d4 {[%clk 0:20:44.7]} 8... O-O {[%clk 0:20:56.4]} 9. Bb5 {[%clk 0:20:54.2]} 9... Bd7 {[%clk 0:21:04.7]} 10. Bxc6 {[%clk 0:21:03.2]} 10... Bxc6 {[%clk 0:21:13.4]} 11. Ng5 {[%clk 0:21:07.2]} 11... Re8 {[%clk 0:21:20.6]} 12. Qd3 {[%clk 0:21:16]} 12... Bd6+ {[%clk 0:21:16.5]} 13. Be3 {[%clk 0:21:21.4]} 13... a6 {[%clk 0:21:22.2]} 14. O-O {[%clk 0:21:28.2]} 14... Ne4 {[%clk 0:21:24.5]} 15. Ncxe4 {[%clk 0:21:32.5]} 15... dxe4 {[%clk 0:21:33.6]} 16. Qd2 {[%clk 0:21:37.4]} 16... Qf6 {[%clk 0:21:27.3]} 17. c3 {[%clk 0:21:39.1]} 17... Qh6 {[%clk 0:21:31.3]} 18. Bf4 {[%clk 0:21:33.7]} 18... Bxf4 {[%clk 0:21:20.9]} 19. Qxf4 {[%clk 0:21:39.9]} 19... b5 {[%clk 0:21:23]} 20. Rfe1 {[%clk 0:21:48.6]} 20... Bb7 {[%clk 0:21:27.2]} 21. Nf3 {[%clk 0:21:55.3]} 21... Qxf4 {[%clk 0:21:34.3]} 0-1

[Event "Live Chess"]
[Site "Chess.com"]
[Date "2021.02.06"]
[Round "2"]
[White "Eric-100"]
[Black "smashyplayz"]
[Result "1-0"]
[CurrentPosition "8/3K4/kQ6/3N4/8/8/8/8 b - -"]
[Timezone "UTC"]
[ECO "C58"]
[ECOUrl "https://www.chess.com/openings/Italian-Game-Knight-Attack-Polerio-Bishop-Check-Line-6...c6-7.dxc6-bxc6"]
[UTCDate "2021.02.06"]
[UTCTime "19:01:11"]
[WhiteElo "931"]
[BlackElo "1393"]
[TimeControl "1200+10"]
[Termination "Eric-100 won by checkmate"]
[StartTime "19:01:11"]
[EndDate "2021.02.06"]
[EndTime "19:25:38"]
[Link "https://www.chess.com/live/game/6472132157"]

1. e4 {[%clk 0:20:09.7]} 1... e5 {[%clk 0:20:07.1]} 2. Nf3 {[%clk 0:20:16.5]} 2... Nc6 {[%clk 0:20:15.4]} 3. Bc4 {[%clk 0:20:24]} 3... Nf6 {[%clk 0:20:23.6]} 4. Ng5 {[%clk 0:20:32.2]} 4... d5 {[%clk 0:20:32.1]} 5. exd5 {[%clk 0:20:40.7]} 5... Na5 {[%clk 0:20:40.3]} 6. Bb5+ {[%clk 0:20:49.2]} 6... c6 {[%clk 0:20:49.4]} 7. dxc6 {[%clk 0:20:57.1]} 7... bxc6 {[%clk 0:20:59.3]} 8. Ba4 {[%clk 0:21:02.4]} 8... Bd7 {[%clk 0:21:06.8]} 9. O-O {[%clk 0:21:06.7]} 9... h6 {[%clk 0:21:14.9]} 10. Nf3 {[%clk 0:21:12.9]} 10... Bd6 {[%clk 0:21:22.8]} 11. d4 {[%clk 0:21:21.1]} 11... e4 {[%clk 0:21:17.2]} 12. Ne5 {[%clk 0:21:28.2]} 12... Bxe5 {[%clk 0:20:50.8]} 13. dxe5 {[%clk 0:21:33.8]} 13... Ng4 {[%clk 0:20:59.3]} 14. h3 {[%clk 0:21:29]} 14... Nxe5 {[%clk 0:21:06.6]} 15. f4 {[%clk 0:21:35.9]} 15... Ng6 {[%clk 0:21:10.1]} 16. Nc3 {[%clk 0:21:35.2]} 16... Bf5 {[%clk 0:20:57.5]} 17. Qxd8+ {[%clk 0:21:41.8]} 17... Rxd8 {[%clk 0:21:05]} 18. Re1 {[%clk 0:21:49.7]} 18... Rd4 {[%clk 0:20:49.5]} 19. Be3 {[%clk 0:21:51.4]} 19... Rb4 {[%clk 0:20:36.3]} 20. Bc1 {[%clk 0:21:54.7]} 20... O-O {[%clk 0:20:37.8]} 21. a3 {[%clk 0:22:00.8]} 21... Rd4 {[%clk 0:20:28.5]} 22. Be3 {[%clk 0:22:05.3]} 22... Rdd8 {[%clk 0:20:34.9]} 23. Bxa7 {[%clk 0:22:13.3]} 23... Rfe8 {[%clk 0:20:34.8]} 24. Rad1 {[%clk 0:20:51.7]} 24... Rxd1 {[%clk 0:20:17.1]} 25. Nxd1 {[%clk 0:19:49.9]} 25... Nxf4 {[%clk 0:19:55.2]} 26. b4 {[%clk 0:19:49.4]} 26... Nc4 {[%clk 0:19:33.1]} 27. Bxc6 {[%clk 0:18:56.4]} 27... Re7 {[%clk 0:17:02.5]} 28. Bc5 {[%clk 0:18:41.3]} 28... Re6 {[%clk 0:16:27.8]} 29. Bd7 {[%clk 0:18:45]} 29... Rf6 {[%clk 0:16:35.4]} 30. Bxf5 {[%clk 0:18:52.9]} 30... Rxf5 {[%clk 0:16:43.8]} 31. a4 {[%clk 0:19:00.6]} 31... Re5 {[%clk 0:15:18.5]} 32. a5 {[%clk 0:19:04.4]} 32... Nxa5 {[%clk 0:15:17.4]} 33. bxa5 {[%clk 0:19:10.6]} 33... Rxc5 {[%clk 0:15:25.6]} 34. Rxe4 {[%clk 0:19:18.6]} 34... Ng6 {[%clk 0:15:29.5]} 35. Ra4 {[%clk 0:19:26]} 35... Re5 {[%clk 0:14:21.4]} 36. Kh2 {[%clk 0:19:16.4]} 36... Re8 {[%clk 0:14:26.6]} 37. a6 {[%clk 0:19:24.8]} 37... Ra8 {[%clk 0:14:29.3]} 38. Nc3 {[%clk 0:19:27.4]} 38... Ne5 {[%clk 0:14:37.9]} 39. Nb5 {[%clk 0:19:35.3]} 39... Nc6 {[%clk 0:14:46]} 40. Nc7 {[%clk 0:19:43.3]} 40... Ra7 {[%clk 0:14:49.2]} 41. Nb5 {[%clk 0:19:52.2]} 41... Ra8 {[%clk 0:14:55.5]} 42. a7 {[%clk 0:19:59.2]} 42... Kh7 {[%clk 0:14:53]} 43. Kg3 {[%clk 0:20:06.9]} 43... Kg6 {[%clk 0:15:01.5]} 44. Kg4 {[%clk 0:20:15.4]} 44... h5+ {[%clk 0:14:46.1]} 45. Kf4 {[%clk 0:20:21.4]} 45... Kf6 {[%clk 0:14:54.8]} 46. Ra6 {[%clk 0:20:29.1]} 46... Ke7 {[%clk 0:14:56.3]} 47. Rxc6 {[%clk 0:20:18.8]} 47... Kd7 {[%clk 0:15:04.3]} 48. Ra6 {[%clk 0:20:27.1]} 48... Kc8 {[%clk 0:15:09.7]} 49. Kf5 {[%clk 0:20:33.5]} 49... Kb7 {[%clk 0:15:18.3]} 50. Ra1 {[%clk 0:20:40.9]} 50... Kb6 {[%clk 0:15:26.9]} 51. Nc3 {[%clk 0:20:48]} 51... Rxa7 {[%clk 0:15:35.8]} 52. Rxa7 {[%clk 0:20:56.4]} 52... Kxa7 {[%clk 0:15:45.7]} 53. g4 {[%clk 0:21:05.3]} 53... hxg4 {[%clk 0:15:52.8]} 54. hxg4 {[%clk 0:21:14.2]} 54... Kb6 {[%clk 0:16:01.6]} 55. Nd5+ {[%clk 0:21:20.1]} 55... Kc6 {[%clk 0:16:10.9]} 56. Ke5 {[%clk 0:21:28.6]} 56... Kd7 {[%clk 0:16:15.2]} 57. g5 {[%clk 0:21:36.2]} 57... Ke8 {[%clk 0:16:08.4]} 58. c4 {[%clk 0:21:42.5]} 58... Kd7 {[%clk 0:16:15.8]} 59. c5 {[%clk 0:21:51.2]} 59... Kc6 {[%clk 0:16:21.4]} 60. Kd4 {[%clk 0:21:53.5]} 60... Kd7 {[%clk 0:16:26]} 61. Nf4 {[%clk 0:22:02]} 61... f6 {[%clk 0:16:15.9]} 62. gxf6 {[%clk 0:22:03.4]} 62... gxf6 {[%clk 0:16:24.2]} 63. Kd5 {[%clk 0:22:12]} 63... f5 {[%clk 0:16:31.5]} 64. c6+ {[%clk 0:22:20.2]} 64... Kc7 {[%clk 0:16:39.6]} 65. Kc5 {[%clk 0:22:29.1]} 65... Kc8 {[%clk 0:16:46.8]} 66. Kd6 {[%clk 0:22:37.9]} 66... Kd8 {[%clk 0:16:55.2]} 67. c7+ {[%clk 0:22:46.5]} 67... Kc8 {[%clk 0:17:04.3]} 68. Ne2 {[%clk 0:22:52.3]} 68... f4 {[%clk 0:16:25.1]} 69. Nxf4 {[%clk 0:22:59.4]} 69... Kb7 {[%clk 0:16:32.4]} 70. Kd7 {[%clk 0:23:07.8]} 70... Kb6 {[%clk 0:16:40.2]} 71. c8=Q {[%clk 0:23:15.9]} 71... Ka7 {[%clk 0:16:49.7]} 72. Qc7+ {[%clk 0:23:21.1]} 72... Ka6 {[%clk 0:16:58.6]} 73. Qb8 {[%clk 0:23:28.4]} 73... Ka5 {[%clk 0:17:06.4]} 74. Nd5 {[%clk 0:23:37.4]} 74... Ka6 {[%clk 0:17:14.9]} 75. Qb6# {[%clk 0:23:45.9]} 1-0